Workbook

Sheet Vorlagen

Sheet Turnierabrechnung (hidden)
A1: Einnahmen - Abrechnung
A3: Datum: | G3: 18.01.2019
A5: Ausrichter: | G5: SV Höntrop
A7: Veranstaltung: | G7: Vorrunde SparkassenMasters
A9: Art der Veranstaltung: | J9: X | K9: Hallenturnier | T9: Feldturnier
A11: Datum / Tag | D11: Zur Verwendung für | I11: Eintrittskarten | Q11: Anzahl verk. Karten | U11: Einzelpreis [Euro] | Y11: Einnahme [Euro]
I12: Anfangsnr. | M12: Endnummer
A13: 1 | D13: 2 | I13: 3 | M13: 4 | Q13: 5 | U13: 6 | Y13: 7 | AC13: 8
A14: 1. Tag | D14: Jugendliche | I14: 1 | M14: 2 | Q14: =IF(ISBLANK(M14),"",M14-I14+1) -> 2 | U14: 3 | Y14: =IF(ISBLANK(U14),"",Q14*U14) -> 6
A15: 1. Tag | D15: Vollzahler | I15: 4 | M15: 5 | Q15: 2 | U15: 6 | Y15: 12
A16: 2. Tag | D16: Jugendliche | I16: 7 | M16: 8 | Q16: 2 | U16: 9 | Y16: 18
A17: 2. Tag | D17: Vollzahler | I17: 10 | M17: 11 | Q17: 2 | U17: 12 | Y17: 24
A18: 3. Tag | D18: Jugendliche
A19: 3. Tag | D19: Vollzahler
I20: Anzahl Zuschauer: | Q20: =SUM(Q14:T19) -> 8 | U20: Gesamt: | Y20: =SUM(Y14:AB19) -> 60
A22: Die Abrechung erfolgt gemäß § 70, Absatz 2 der Spielordnung des WDFV,
A23: wie nachstehend aufgeführt:
B25: Bruttoeinnahme (Einnahme laut vorstehender Abrechnung) | Z25: =Y20 -> 60
B26: abzüglich
A27: a) | B27: =IF(X27=0,"ohne Mehrwertsteuerberechnung",IF(X27=6.54,"7% Mehrwertsteuer von der Bruttoeinnahme","19% Mehrwertsteuer von der Bruttoeinnahme")) -> 19% Mehrwertsteuer von der Bruttoeinnahme | X27: =IF(G7="eigenes Vereinsturnier (keine MwSt.)",0,IF(G7="eigenes Vereinsturnier (7% MwSt.)",6.54,15.97)) -> 15.97 | Z27: =Z25*X27/100 -> 9.582
B29: Bruttoeinnahme nach Abzug der Mehrwertsteuer | Z29: =Z25-Z27 -> 50.418
B30: abzüglich
A31: b) | B31: Schiedsrichterkosten (entsprechend der Abrechungsbelege) | Z31: 0.5
B33: Nettoeinnahme | Z33: =Z29-Z31 -> 49.918
B35: Abgabe an den Kreis (falls positiv)
A37: =IF(N37="keine Abgabe","X","") ->  | B37: keine Abgabe | N37: Hallenvorrunde (10 %)
A38: =IF(N37="Hallenvorrunde (10 %)","X","") -> X | B38: Hallenvorrunde (10 %)
A39: =IF(N37="Hallenendrunde (25 %)","X","") ->  | B39: Hallenendrunde (25 %) | N39: =IF($A$38="X",0.1,IF($A$39="X",0.25,0)) -> 0.1 | R39: Kreisabgabe: | Z39: =Z33*N39 -> 4.9918
B41: Der Betrag wird innerhalb von 10 Tagen auf die Kreiskasse überwiesen!
A44: Unterschriften:
G45: Ausrichtender Verein | U45: Kreisvertreter

Sheet Relegation (hidden)
A1: Einnahmen - Abrechnung
B3: Datum: | H3: 18.01.2019
U4: Teilnehmende Vereine: | AD4: =IF(AH4=0,"",AH4) -> 4 | AH4: =COUNTA(H11,H13,H15,H17,H19,H21) -> 4
B5: Veranstaltung: | H5: Relegation
B7: Spielklasse: | H7: Kreisliga B | U7: X | V7: Aufstieg | AC7: Abstieg
B9: Ausrichter: | H9: AC Hattingen | V9: VK: | X9: =IF(ISERROR(AH9),"",AH9) -> 21060165 | AH9: =VLOOKUP(H9,'Deb Neu'!A:B,2,FALSE) -> 21060165
B11: Gastverein: | H11: AFC Bochum | V11: VK: | X11: =IF(ISERROR(AH11),"",AH11) -> 21060108 | AH11: =VLOOKUP(H11,'Deb Neu'!A:B,2,FALSE) -> 21060108
B13: Gastverein: | H13: Amacspor Dahlhausen | V13: VK: | X13: =IF(ISERROR(AH13),"",AH13) -> 21060023 | AH13: =VLOOKUP(H13,'Deb Neu'!A:B,2,FALSE) -> 21060023
B15: Gastverein: | H15: BV Hiltrop | V15: VK: | X15: =IF(ISERROR(AH15),"",AH15) -> 21060025 | AH15: =VLOOKUP(H15,'Deb Neu'!A:B,2,FALSE) -> 21060025
B17: Gastverein: | H17: BV Westfalia Bochum | V17: VK: | X17: =IF(ISERROR(AH17),"",AH17) -> 21060017 | AH17: =VLOOKUP(H17,'Deb Neu'!A:B,2,FALSE) -> 21060017
B19: Gastverein: | V19: VK: | X19: =IF(ISERROR(AH19),"",AH19) ->  | AH19: =VLOOKUP(H19,'Deb Neu'!A:B,2,FALSE) -> 
B21: Gastverein: | V21: VK: | X21: =IF(ISERROR(AH21),"",AH21) ->  | AH21: =VLOOKUP(H21,'Deb Neu'!A:B,2,FALSE) -> 
A23: Farbe | D23: Zur Verwendung für | I23: Eintrittskarten | Q23: Anzahl verk. Karten | U23: Einzelpreis [Euro] | Y23: Einnahme [Euro]
I24: Anfangsnr. | M24: Endnummer
A25: 1 | D25: 2 | I25: 3 | M25: 4 | Q25: 5 | U25: 6 | Y25: 7 | AC25: 8
A26: gelb | D26: Opa | I26: 1 | M26: 2 | Q26: =IF(ISBLANK(M26),"",M26-I26+1) -> 2 | U26: 3 | Y26: =IF(ISBLANK(U26),"",Q26*U26) -> 6
A27: grün | D27: Oma | I27: 4 | M27: 5 | Q27: =IF(ISBLANK(M27),"",M27-I27+1) -> 2 | U27: 6 | Y27: =IF(ISBLANK(U27),"",Q27*U27) -> 12
Q28: =IF(ISBLANK(M28),"",M28-I28+1) ->  | Y28: =IF(ISBLANK(U28),"",Q28*U28) -> 
Q29: =IF(ISBLANK(M29),"",M29-I29+1) ->  | Y29: =IF(ISBLANK(U29),"",Q29*U29) -> 
I30: Anzahl Zuschauer: | Q30: =SUM(Q26:T29) -> 4 | U30: Gesamt: | Y30: =SUM(Y26:AB29) -> 18
A32: Die Abrechung erfolgt gemäß § 70, Absatz 2 der Spielordnung des WDFV.
A33: wie nachstehend aufgeführt:
B34: Bruttoeinnahme (Einnahme laut vorstehender Abrechnung) | Z34: =Y30 -> 18
B35: abzüglich
A36: a) | B36: 19% Mehrwertsteuer von der Bruttoeinnahme | Z36: =Z34*15.97/100 -> 2.8746
B38: Bruttoeinnahme nach Abzug der Mehrwertsteuer | Z38: =Z34-Z36 -> 15.1254
B39: abzüglich
A40: b) | B40: 15 % für die Gestellung des Platzes | Z40: =Z38*15/100 -> 2.26881
A42: c) | B42: Schiedsrichterkosten (entsprechend der Abrechungsbelege) | Z42: 999
B44: Nettoeinnahme | Z44: =Z34-Z36-Z40-Z42 -> -986.14341
V46: Fortsetzung Seite 2
B48: Gastverein 1: | J48: =IF(AH4>=1,Z44/(AH4+1),"") -> -197.228682
B49: Gastverein 2: | J49: =IF(AH4>=2,J48,"") -> -197.228682
B50: Gastverein 3: | J50: =IF(AH4>=3,J48,"") -> -197.228682
B51: Gastverein 4: | J51: =IF(AH4>=4,J48,"") -> -197.228682
B52: Gastverein 5: | J52: =IF(AH4>=5,J48,"") -> 
B53: Gastverein 6: | J53: =IF(AH4>=6,J48,"") -> 
B54: Fußballkreis: | J54: =J48 -> -197.228682
B56: Gesamt: | J56: =SUM(J48:P55) -> -986.14341
A59: Unterschriften:
G60: Platzverein / Ausrichter | U60: Gastverein / Kreisaufsicht
A63: Bei DFB - Entscheidungs- und Relegationsspielen müssen die Mitglieder des Platzvereins den vollen Eintrittspreis zahlen.
A65: Vereinsseitige Vergünstigungen sind für diese Spiele unzulässig.
A66: Die Abrechnung ist gemeinsam durchzuführen.
A68: Die Abrechnung erfolgt gemäß § 70 der Spielordnung des WDFV:
B69: 1. | C69: Bei Entscheidung- und Relegationsspielen wird die Reineinnahme zu gleichen Teilen unter den teilnehmenden Vereinen und dem Fußballkreis aufgeteilt.
A72: Der Ausrichter teilt dem Kreiskassierer folgendes mit:
B74: 1. | C74: Die Namen der teilnhemenden Mannschaften;
B76: 2. | C76: Die Zuschauergesamteinnahmen (es sollten auch die Nummern der benutzten
C77: Eintrittskarten eingetragen werden);
B79: 3. | C79: Die Schiedsrichterkosten;
B81: 4. | C81: Es müssen die Originalabrechnungsunterlagen zugesandt werden, da die
C82: Abrechnung und Versteuerung über den Verband stattfindet;
B84: 5. | C84: Alle anderen Berechnungen wie MwSt. (19%), Platzgestellung (15%) und Aufteilung
C85: auf die Vereine und Kreis nimmt der KK vor;
B87: 6. | C87: Der Ausrichter bezahlt die Schiedsrichter sofort vor Ort und behält alle anderen
C88: Gelder ein. Der KK wird dann die jeweiligen Beträge über die Buchhaltung in Form
C89: von Rechnungen und Gutschriften verrechnen.
B91: Der Anteil wird nicht in bar ausgezahlt!

Sheet Sonstiges (hidden)
A1: eigenes Vereinsturnier (keine MwSt.) | B1: keine Abgabe
A2: eigenes Vereinsturnier (7% MwSt.) | B2: Hallenvorrunde (10 %) | C2: Kreisliga A
A3: eigenes Vereinsturnier (19% MwSt.) | B3: Hallenendrunde (25 %) | C3: Kreisliga B
A4: Vorrunde SparkassenMasters | C4: Kreisliga C
A5: Endrunde SparkassenMasters

Sheet Deb Neu (hidden)
A2: AC Hattingen | B2: ="21060165" -> 21060165
A3: AFC Bochum | B3: ="21060108" -> 21060108
A4: Amacspor Dahlhausen | B4: ="21060023" -> 21060023
A5: BV Hiltrop | B5: ="21060025" -> 21060025
A6: BV Langendreer 07 | B6: ="21060043" -> 21060043
A7: BV Westfalia Bochum | B7: ="21060017" -> 21060017
A8: BW Genclerbirligi | B8: ="21060125" -> 21060125
A9: BW Grümerbaum | B9: ="21060029" -> 21060029
A10: BW Weitmar 09 | B10: ="21060124" -> 21060124
A11: CF Kurdistan Bochum | B11: ="21060140" -> 21060140
A12: Concordia Wiemelhausen | B12: ="21060007" -> 21060007
A13: CSG Westpark | B13: ="21060109" -> 21060109
A14: CSV SF Linden | B14: ="21060164" -> 21060164
A15: DJK Adler Dahlhausen | B15: ="21060020" -> 21060020
A16: DJK Adler Riemke | B16: ="21060086" -> 21060086
A17: DJK AFB 06 Bochum | B17: ="21060006" -> 21060006
A18: DJK Arminia Bochum | B18: ="21060090" -> 21060090
A19: DJK Märkisch Hattingen | B19: ="21060085" -> 21060085
A20: DJK Preußen Bochum | B20: ="21060089" -> 21060089
A21: DJK RW Markania Bochum | B21: ="21060093" -> 21060093
A22: DJK SF Linden | B22: ="21060088" -> 21060088
A23: DJK Teutonia Ehrenfeld | B23: ="21060092" -> 21060092
A24: DJK TuS Hordel | B24: ="21060027" -> 21060027
A25: DJK TuS Ruhrtal Witten | B25: ="21060076" -> 21060076
A26: DJK Viktoria Bochum | B26: ="21060084" -> 21060084
A27: DJK Wattenscheid | B27: ="21060060" -> 21060060
A28: ESV Langendreer-West | B28: ="21060044" -> 21060044
A29: FC Altenbochum | B29: ="21060008" -> 21060008
A30: FC Azadi Bochum | B30: ="21060136" -> 21060136
A31: FC Bochum 10/21 | B31: ="21060014" -> 21060014
A32: FC Hasretspor Bochum | B32: ="21060152" -> 21060152
A33: FC Höntrop 80 | B33: ="21060130" -> 21060130
A34: FC Italia Bochum | B34: ="21060114" -> 21060114
A35: FC Neuruhrort | B35: ="21060050" -> 21060050
A36: FC Sandzak Hattingen | B36: ="21060163" -> 21060163
A37: FC Vorwärts Kornharpen | B37: ="21060162" -> 21060162
A38: FSV Sevinghausen | B38: ="21060015" -> 21060015
A39: FSV Witten | B39: ="21060004" -> 21060004
A40: Hammerthaler SV | B40: ="21060033" -> 21060033
A41: Hedefspor Hattingen | B41: ="21060133" -> 21060133
A42: LFC Laer | B42: ="21060042" -> 21060042
A43: Polizeisportvereinigung Bochum | B43: ="21060011" -> 21060011
A44: Portugiesischer SV Witten | B44: ="21060032" -> 21060032
A45: PSV Ennepe | B45: ="21060039" -> 21060039
A46: Rasensport Weitmar 09 | B46: ="21060094" -> 21060094
A47: RW Langendreer | B47: ="21060168" -> 21060168
A48: RSV Hattingen | B48: ="21060166" -> 21060166
A49: RW Leithe | B49: ="21060047" -> 21060047
A50: RW Stiepel | B50: ="21060056" -> 21060056
A51: SC Croatia Bochum | B51: ="21060156" -> 21060156
A52: SC oberstüter | B52: ="21060051" -> 21060051
A53: SC Post Altenbochum | B53: ="21060001" -> 21060001
A54: SC Union Bergen | B54: ="21060005" -> 21060005
A55: SC Weitmar 45 | B55: ="21060064" -> 21060064
A56: SC Werne 2002 | B56: ="21060070" -> 21060070
A57: SF Durchholz | B57: ="21060022" -> 21060022
A58: SF Schnee | B58: ="21060096" -> 21060096
A59: SF Westenfeld | B59: ="21060071" -> 21060071
A60: SG Hill Hattingen | B60: ="21060104" -> 21060104
A61: SG Linden-Dahlhausen | B61: ="21060021" -> 21060021
A62: SG Polonia Bochum | B62: ="21060242" -> 21060242
A63: SG Wattenscheid 09 | B63: ="21060062" -> 21060062
A64: SG Welper | B64: ="21060066" -> 21060066
A65: SK Bochum | B65: ="21060167" -> 21060167
A66: SpVgg. Witten 92/30 | B66: ="21060075" -> 21060075
A67: SpVgg.Gerthe | B67: ="21060153" -> 21060153
A68: SuS Wilhelmshöhe | B68: ="21060072" -> 21060072
A69: SV Altenbochum 01 | B69: ="21060002" -> 21060002
A70: SV Bommern | B70: ="21060018" -> 21060018
A71: SV Eintracht Grumme | B71: ="21060030" -> 21060030
A72: SV Germania Bochum-West | B72: ="21060009" -> 21060009
A73: SV Hellas Bochum | B73: ="21060079" -> 21060079
A74: SV Herbede | B74: ="21060036" -> 21060036
A75: SV Höntrop | B75: ="21060038" -> 21060038
A76: SV Langendreer 04 | B76: ="21060160" -> 21060160
A77: SV Langendreer 04/13 | B77: ="21060045" -> 21060045
A78: SV Phönix Bochum | B78: ="21060010" -> 21060010
A79: SV Steinkuhl | B79: ="21060055" -> 21060055
A80: SV Teutonia Riemke | B80: ="21060053" -> 21060053
A81: SV Türkiyemspor Bochum | B81: ="21060082" -> 21060082
A82: SV Vöde | B82: ="21060058" -> 21060058
A83: SV Vormholz | B83: ="21060097" -> 21060097
A84: SV Waldesrand Linden | B84: ="21060059" -> 21060059
A85: SW Eppendorf | B85: ="21060024" -> 21060024
A86: SW Wattenscheid 08 | B86: ="21060161" -> 21060161
A87: TuRa Rüdinghausen | B87: ="21060054" -> 21060054
A88: Türkischer SV Witten | B88: ="21060137" -> 21060137
A89: TuS Blankenstein | B89: ="21060048" -> 21060048
A90: TuS Harpen | B90: ="21060034" -> 21060034
A91: TuS Hattingen | B91: ="21060035" -> 21060035
A92: TuS Heven | B92: ="21060037" -> 21060037
A93: TuS Kaltehardt | B93: ="21060040" -> 21060040
A94: TuS Querenburg | B94: ="21060052" -> 21060052
A95: TuS Stockum | B95: ="21060057" -> 21060057
A96: VfB Günnigfeld | B96: ="21060031" -> 21060031
A97: VfB Langendreerholz | B97: ="21060046" -> 21060046
A98: VfB Witten-Annen | B98: ="21060003" -> 21060003
A99: VfL Bochum 1848 | B99: ="21060016" -> 21060016
A100: VfL Winz-Baak | B100: ="21060073" -> 21060073
A101: WSV Bochum | B101: ="21060067" -> 21060067
